bitfinex/quotes_SOLUSD_20251025
["timestamp","ask_amount","ask_price","bid_price","bid_amount"]
[1761413990382,5.87839647,192.37,192.33,0.67]
[1761413990894,5.19839647,192.37,192.33,0.67]
[1761413991072,0.68,192.36,192.34,15.60752282]
[1761413991766,5.19839647,192.37,192.34,15.60752282]
[1761413991971,5.87839647,192.37,192.34,16.26752282]
[1761413992391,5.87839647,192.37,192.34,0.66]
[1761413992884,5.87839647,192.37,192.35,15.60914696]
[1761413995992,5.19804553,192.38,192.35,15.60914696]
[1761413996182,5.19804553,192.38,192.36,0.66]
[1761413996798,5.19804553,192.38,192.36,16.26914696]
[1761413998501,16.07425056,192.39,192.36,16.26914696]
[1761413998686,16.75425056,192.39,192.36,16.26914696]
[1761414000397,5.19777535,192.39,192.37,0.68]
[1761414000594,5.90777535,192.39,192.36,0.68]
[1761414000777,5.90777535,192.39,192.37,15.60752282]
[1761414005905,5.90804553,192.38,192.37,15.60752282]
[1761414007488,5.90804553,192.38,192.34,0.68]
[1761414007698,5.90804553,192.38,192.35,15.60752282]
[1761414008089,5.90804553,192.38,192.35,16.28752282]
[1761414009608,43.68526831,192.4,192.36,0.68]
[1761414009792,0.71,192.39,192.36,0.68]
[1761414009997,0.71,192.39,192.37,15.60752282]
[1761414011390,5.19804553,192.38,192.37,15.60752282]
[1761414014421,5.19777535,192.39,192.37,16.28752282]
[1761414016323,5.19777535,192.39,192.38,0.68]
[1761414016493,5.19753607,192.4,192.38,16.28671088]
[1761414016827,5.19727532,192.41,192.38,0.68]
[1761414017302,5.90727532,192.41,192.39,15.60589902]
[1761414018512,5.90727532,192.41,192.38,0.68]
[1761414018825,5.90727532,192.41,192.38,16.28589902]
[1761414020824,5.90727532,192.41,192.38,0.68]
[1761414022721,5.90727532,192.41,192.38,16.28589902]
[1761414022915,5.90727532,192.41,192.38,0.68]
[1761414026222,0.66,192.4,192.37,16.31589902]
[1761414026601,0.66,192.4,192.37,0.71]
[1761414027102,0.66,192.4,192.38,5.19696497]
[1761414029434,5.85756768,192.4,192.38,5.19696497]
[1761414031224,0.66,192.39,192.34,7.37063563]
[1761414031738,0.66,192.39,192.36,6.66033441]
[1761414032035,0.66,192.39,192.33,0.71]
[1761414032036,1.46153418,192.38,192.33,0.71]
[1761414032233,1.46153418,192.38,192.35,6.66033441]
[1761414032434,0.66,192.37,192.35,6.66033441]
[1761414033136,5.19804553,192.38,192.35,6.66033441]
[1761414033340,0.66,192.37,192.35,6.66033441]
[1761414038342,5.85832345,192.37,192.35,6.66033441]
[1761414038542,5.85832345,192.37,192.33,7.37092607]
[1761414038841,5.85832345,192.37,192.34,7.37092607]
[1761414039444,5.85832345,192.37,192.34,8.08092607]
[1761414044035,5.19804553,192.38,192.35,0.71]
[1761414044239,5.85804553,192.38,192.35,0.71]
[1761414044749,5.85804553,192.38,192.35,8.08092607]
[1761414045049,5.85804553,192.38,192.35,0.71]
[1761414045237,0.66,192.37,192.33,7.37092607]
[1761414045543,5.85804553,192.38,192.34,8.79092607]
[1761414045743,5.19804553,192.38,192.34,8.79092607]
[1761414045936,5.19804553,192.38,192.34,0.71]
[1761414046135,0.66,192.37,192.34,0.71]
[1761414046339,0.66,192.37,192.34,9.50092607]
[1761414047248,0.66,192.37,192.34,0.71]
[1761414047650,0.66,192.37,192.35,5.19804553]
[1761414054262,5.19804553,192.38,192.35,5.19804553]
[1761414054460,5.87804553,192.38,192.35,5.19804553]
[1761414055661,5.87804553,192.38,192.35,5.85804553]
[1761414063458,16.07425056,192.39,192.35,5.19804553]
[1761414063755,0.69,192.37,192.35,5.19804553]
[1761414064567,16.07425056,192.39,192.35,5.19804553]
[1761414064768,0.69,192.38,192.35,5.88804553]
[1761414066373,0.69,192.38,192.33,8.17324524]
[1761414066667,0.69,192.38,192.34,0.69]
[1761414070679,22.88,192.4,192.36,2.28385335]
[1761414070865,23.57,192.4,192.36,2.97385335]
[1761414071064,0.69,192.39,192.36,2.97385335]
[1761414073088,0.69,192.39,192.36,0.69]
[1761414075089,0.69,192.39,192.35,23.13917569]
[1761414076783,5.88780644,192.39,192.35,23.13917569]
[1761414076988,0.69,192.38,192.35,17.94034383]
[1761414077185,0.69,192.38,192.35,15.65649048]
[1761414078790,0.69,192.38,192.35,0.69]
[1761414078991,0.69,192.38,192.36,15.60671088]
[1761414082693,5.19780644,192.39,192.36,15.60671088]
[1761414082900,5.87780644,192.39,192.36,16.31671088]
[1761414083596,5.19780644,192.39,192.36,16.31671088]
[1761414086604,5.87780644,192.39,192.36,16.31671088]
[1761414091497,5.87780644,192.39,192.36,15.60671088]
[1761414091678,0.68,192.38,192.36,15.60671088]
[1761414091883,5.87780644,192.39,192.36,16.31671088]
[1761414092610,0.68,192.38,192.36,15.60671088]
[1761414094108,5.19780644,192.39,192.36,15.60671088]
[1761414094288,5.87780644,192.39,192.36,15.60671088]
[1761414094489,5.87780644,192.39,192.36,16.31671088]
[1761414098818,0.68,192.38,192.36,15.60671088]
[1761414099517,5.87780644,192.39,192.36,15.60671088]
[1761414100121,5.19780644,192.39,192.36,15.60671088]
[1761414100304,5.87806785,192.38,192.36,15.60671088]
[1761414101498,5.87777535,192.39,192.36,15.60671088]
[1761414102118,5.87777535,192.39,192.36,16.31671088]
[1761414123812,5.87777535,192.39,192.36,15.60671088]
[1761414125321,5.87777535,192.39,192.36,16.32671088]
[1761414126534,5.87777535,192.39,192.36,0.72]
[1761414127432,5.19777535,192.39,192.36,0.72]
[1761414128137,5.87777535,192.39,192.36,0.72]
[1761414133423,5.19777535,192.39,192.36,0.72]
[1761414134611,5.87777535,192.39,192.36,0.72]
[1761414138838,5.19777535,192.39,192.36,0.72]
[1761414139448,5.19777535,192.39,192.36,16.32671088]
[1761414145339,5.84777535,192.39,192.36,16.32671088]
[1761414146637,5.19777535,192.39,192.36,16.32671088]
[1761414147544,5.19777535,192.39,192.37,0.69]
[1761414148044,28.07756622,192.4,192.37,0.69]
[1761414148217,28.07756622,192.4,192.37,16.29589902]
[1761414148748,28.07756622,192.4,192.38,0.69]
[1761414149947,28.07756622,192.4,192.37,15.60589902]
[1761414150139,28.72756622,192.4,192.37,16.29589902]
[1761414150338,28.07756622,192.4,192.37,15.60589902]
[1761414150538,28.07756622,192.4,192.38,0.69]
[1761414152932,28.72756622,192.4,192.37,0.69]
[1761414154834,28.72756622,192.4,192.36,15.60589902]
[1761414155040,28.72756622,192.4,192.36,16.29589902]
[1761414155347,28.72756622,192.4,192.36,15.60589902]
[1761414155549,28.72756622,192.4,192.37,0.69]
[1761414155756,28.07756622,192.4,192.37,0.69]
[1761414156356,28.72756622,192.4,192.37,0.69]
[1761414159248,28.72756622,192.4,192.37,16.29508725]
[1761414160248,28.72756622,192.4,192.37,0.69]
[1761414160453,30.18908817,192.4,192.37,0.69]
[1761414160659,28.72756622,192.4,192.37,0.69]
[1761414160872,28.07756622,192.4,192.37,0.69]
[1761414166276,28.72756622,192.4,192.37,0.69]
[1761414170181,28.72756622,192.4,192.37,16.29508725]
[1761414170698,28.72756622,192.4,192.37,0.69]
[1761414173073,28.07756622,192.4,192.37,0.69]
[1761414173576,28.07756622,192.4,192.37,16.29508725]
[1761414173965,28.07756622,192.4,192.38,0.7]
[1761414175278,28.76756622,192.4,192.36,2.98326495]
[1761414175581,28.76756622,192.4,192.37,16.30508725]
[1761414176277,5.88780148,192.39,192.37,15.60508725]
[1761414176460,5.88780148,192.39,192.36,0.7]
[1761414176660,5.88780148,192.39,192.36,16.30508725]
[1761414179485,5.88780148,192.39,192.36,0.7]
[1761414179784,5.88780148,192.39,192.37,15.60508725]
[1761414181471,5.88780148,192.39,192.35,6.0337147]
[1761414181472,0.71,192.38,192.35,6.0337147]
[1761414181769,0.71,192.38,192.36,15.60508725]
[1761414182386,0.71,192.38,192.35,6.0337147]
[1761414182579,0.71,192.38,192.36,15.60589902]
[1761414182760,5.9080891,192.38,192.35,6.0337147]
[1761414183184,0.71,192.37,192.35,6.0337147]
[1761414184588,5.90853535,192.37,192.35,6.0337147]
[1761414184765,0.71,192.36,192.35,6.0337147]
[1761414186789,0.71,192.36,192.35,21.64204955]
[1761414192591,5.19777535,192.39,192.35,21.64204955]
[1761414192787,0.71,192.37,192.35,21.64204955]
[1761414195987,5.19811439,192.38,192.36,0.72]
[1761414196494,5.90777535,192.39,192.36,0.72]
[1761414196972,5.90777535,192.39,192.35,23.9253145]
[1761414197180,0.71,192.38,192.35,24.6453145]
[1761414197580,5.90777535,192.39,192.35,24.6453145]
[1761414198193,5.90777535,192.39,192.35,9.03697965]
[1761414198586,0.71,192.38,192.36,15.60752282]
[1761414199290,0.71,192.38,192.35,9.03697965]
[1761414199495,5.19777535,192.39,192.35,8.31697965]
[1761414199798,5.90777535,192.39,192.36,0.72]
[1761414203096,22.88,192.4,192.37,2.28326495]
[1761414203097,5.19753544,192.4,192.37,2.28326495]
[1761414203601,5.91753544,192.4,192.37,2.95326495]
[1761414204103,0.72,192.39,192.37,2.28326495]
[1761414204403,5.91753544,192.4,192.37,2.95326495]
[1761414205102,22.88,192.4,192.38,0.67]
[1761414208407,0.72,192.39,192.37,15.60508725]
[1761414208605,0.72,192.39,192.36,2.95326495]
[1761414208790,0.72,192.39,192.36,18.55916397]
[1761414211293,5.91779016,192.39,192.36,18.55916397]
[1761414211510,5.91779016,192.39,192.36,16.27589902]
[1761414212021,5.19779016,192.39,192.36,15.60589902]
[1761414212189,0.72,192.38,192.36,15.60589902]
[1761414212809,5.91779016,192.39,192.36,15.60589902]
[1761414215597,5.91779016,192.39,192.36,16.27589902]
[1761414220005,5.91779016,192.39,192.36,18.55916397]
[1761414222811,5.19779016,192.39,192.36,18.55916397]
[1761414223135,0.2,192.45,192.38,2.28326495]
[1761414223303,0.2,192.45,192.44,2.28326495]
[1761414223702,0.2,192.45,192.43,2.28326495]
[1761414223917,0.2,192.45,192.44,2.07992096]
[1761414224308,0.92,192.45,192.44,2.07992096]
[1761414224618,0.2,192.45,192.44,2.07992096]
[1761414225002,0.2,192.45,192.44,2.74992096]
[1761414226723,0.2,192.45,192.44,2.07992096]
[1761414227129,0.92,192.45,192.44,2.07992096]
[1761414232614,0.92,192.45,192.42,38.16326495]
[1761414232815,0.92,192.45,192.42,38.02024954]
[1761414233123,0.92,192.45,192.43,5.39589181]
[1761414235732,0.92,192.45,192.43,6.85614135]
[1761414236217,0.92,192.45,192.43,1.46024954]
[1761414236421,0.92,192.45,192.44,2.08013728]
[1761414243043,0.2,192.45,192.44,2.08013728]
[1761414246344,0.2,192.45,192.42,41.77693632]
[1761414249939,6.08619161,192.45,192.42,35.86]
[1761414250138,0.69,192.44,192.42,35.86]
[1761414250456,0.89,192.45,192.43,1.46024954]
[1761414250647,0.89,192.45,192.42,38.02024954]
[1761414253837,0.39,192.45,192.42,38.02024954]
[1761414258058,0.39,192.45,192.42,36.56]
[1761414259353,5.28594996,192.46,192.42,36.56]
[1761414259552,5.28594996,192.46,192.43,0.7]
[1761414261063,0.09,192.46,192.43,0.7]
[1761414267363,0.09,192.46,192.43,5.89667407]
[1761414267568,0.09,192.46,192.44,0.68]
[1761414268066,0.09,192.46,192.44,2.14024954]
[1761414268281,0.09,192.46,192.44,0.68]
[1761414306823,0.09,192.46,192.4,6.04561675]
[1761414306824,0.69,192.45,192.4,6.04561675]
[1761414306993,2.97121185,192.45,192.4,0.65]
[1761414307191,2.97121185,192.45,192.39,36.47]
[1761414307491,0.69,192.44,192.39,36.47]
[1761414308003,0.69,192.44,192.4,0.65]
[1761414311306,0.69,192.44,192.4,2.93121185]
[1761414312007,0.69,192.44,192.41,0.65]
[1761414312184,5.19625552,192.45,192.41,0.65]
[1761414312387,5.88625552,192.45,192.41,0.65]
[1761414312800,5.88625552,192.45,192.41,2.93121185]
[1761414313494,1.0,192.44,192.41,2.93121185]
[1761414315417,1.69,192.44,192.41,2.93121185]
[1761414317311,1.0,192.44,192.41,2.93121185]
[1761414317691,1.69,192.44,192.41,2.28121185]
[1761414317892,1.69,192.44,192.41,2.93121185]
[1761414318398,1.0,192.44,192.41,2.93121185]
[1761414318707,1.69,192.44,192.41,2.93121185]
[1761414319288,1.0,192.44,192.41,2.93121185]
[1761414319986,1.0,192.44,192.42,2.93121185]
[1761414320606,1.0,192.44,192.42,0.65]
[1761414335390,1.0,192.44,192.42,2.93121185]
[1761414335597,1.0,192.44,192.43,0.65]
[1761414336406,1.0,192.44,192.43,2.73002912]
[1761414337622,1.0,192.44,192.42,0.65]
[1761414337811,1.0,192.44,192.42,6.70577845]
[1761414338117,1.0,192.44,192.43,0.65]
[1761414345730,1.0,192.44,192.43,6.59592573]
[1761414346626,1.0,192.44,192.43,44.69713758]
[1761414347029,1.0,192.44,192.43,8.87713758]
[1761414347235,1.0,192.44,192.43,44.69713758]
[1761414354836,1.0,192.44,192.43,43.87602232]
[1761414358243,1.0,192.44,192.43,41.76592573]
[1761414358441,1.0,192.44,192.41,7.32727181]
[1761414358744,1.0,192.44,192.42,35.82]
[1761414359242,0.71,192.43,192.39,7.3278654]
[1761414359429,0.71,192.43,192.41,35.82]
[1761414360142,0.71,192.43,192.39,46.30367107]
[1761414360536,7.36682122,192.43,192.39,5.28590226]
[1761414360738,7.36682122,192.43,192.36,43.38146894]
[1761414360940,7.36682122,192.43,192.36,20.55896734]
[1761414360941,2.13009659,192.42,192.36,20.55896734]
[1761414361134,22.88,192.4,192.36,6.10137235]
[1761414361521,13.66918043,192.39,192.36,6.10137235]
[1761414361935,0.67,192.38,192.36,6.10137235]
[1761414362345,5.86805221,192.38,192.36,6.10137235]
[1761414363128,18.8669815,192.39,192.36,6.10137235]
[1761414363520,12.99918043,192.39,192.36,6.82137235]
[1761414363727,28.07753465,192.4,192.37,0.72]
[1761414364023,43.68424553,192.4,192.37,0.72]
[1761414364546,36.30900359,192.4,192.36,6.82137235]
[1761414364942,5.19751471,192.4,192.36,6.10137235]
[1761414365150,5.86751471,192.4,192.36,8.28146894]
[1761414366557,5.86751471,192.4,192.36,6.82137235]
[1761414366762,28.74751471,192.4,192.36,22.4264596]
[1761414367155,28.07751471,192.4,192.37,0.72]
[1761414368262,22.88,192.4,192.37,0.72]
[1761414368464,23.55,192.4,192.37,0.72]
[1761414368670,0.67,192.39,192.36,21.7064596]
[1761414368871,0.67,192.39,192.36,22.4264596]
[1761414369672,7.32796775,192.39,192.36,21.7064596]
[1761414369869,2.13009659,192.38,192.36,6.10137235]
[1761414370260,0.67,192.37,192.36,6.10137235]
[1761414371846,0.67,192.37,192.29,13.00061681]
[1761414371847,20.32420169,192.37,192.3,0.72]
[1761414372049,1.46009659,192.35,192.3,36.58]
[1761414372570,0.67,192.34,192.31,0.72]
[1761414373452,43.68858211,192.36,192.31,0.72]
[1761414373658,45.8186787,192.36,192.31,0.72]
[1761414373874,44.35858211,192.36,192.31,2.18009659]
[1761414374179,44.35858211,192.36,192.32,0.72]
[1761414374756,0.67,192.35,192.32,0.72]
[1761414375175,43.68858211,192.36,192.32,0.72]
[1761414375355,28.07862296,192.36,192.32,0.72]
[1761414375560,45.8186787,192.36,192.32,0.72]
[1761414375768,5.86902125,192.35,192.3,41.06015177]
[1761414375966,5.86902125,192.35,192.32,0.72]
[1761414376782,5.86902125,192.35,192.31,0.72]
[1761414377263,43.6887846,192.36,192.31,0.72]
[1761414377465,0.67,192.35,192.31,0.72]
[1761414378470,5.86893848,192.35,192.31,0.72]
[1761414378983,5.19893848,192.35,192.31,0.72]
[1761414380284,5.90893848,192.35,192.31,0.72]
[1761414386571,22.88,192.36,192.32,1.46009659]
[1761414386771,5.19855488,192.37,192.33,2.13009659]
[1761414386975,5.19855488,192.37,192.33,0.67]
[1761414387191,5.90855488,192.37,192.33,0.67]
[1761414388074,0.71,192.36,192.31,0.67]
[1761414388270,2.17009659,192.36,192.3,35.88]
[1761414388487,1.46009659,192.35,192.3,35.88]
[1761414388687,2.17009659,192.35,192.3,35.88]
[1761414388888,0.71,192.34,192.3,35.88]
[1761414389493,5.90913896,192.34,192.3,35.88]
[1761414389670,0.71,192.33,192.3,36.55]
[1761414390288,0.71,192.33,192.3,35.88]
[1761414390794,0.71,192.33,192.29,43.21056936]
[1761414391775,0.71,192.33,192.29,41.75047277]
[1761414392275,0.71,192.33,192.3,0.67]
[1761414393793,5.19913896,192.34,192.3,0.67]
[1761414393995,5.90913896,192.34,192.3,0.67]
[1761414401078,0.71,192.33,192.3,0.67]
[1761414402280,5.19913896,192.34,192.3,0.67]
[1761414402479,5.90913896,192.34,192.3,0.67]
[1761414408299,5.19913896,192.34,192.3,0.67]
[1761414408487,0.71,192.33,192.3,0.67]
[1761414409085,7.36923555,192.34,192.3,0.67]
[1761414412299,5.90913896,192.34,192.3,0.67]
[1761414413812,0.71,192.34,192.3,0.67]
[1761414414108,5.19750519,192.4,192.33,1.46009659]
[1761414414314,5.19750519,192.4,192.33,37.32009659]
[1761414414315,0.71,192.39,192.33,37.32009659]
[1761414414502,2.17009659,192.39,192.34,0.69]
[1761414414690,2.9939672,192.39,192.34,0.69]
[1761414414891,0.71,192.38,192.34,0.69]
[1761414415390,5.90811905,192.38,192.34,0.69]
[1761414418514,8.19208625,192.38,192.34,0.69]
[1761414418716,0.71,192.37,192.34,0.69]
[1761414419819,7.48208625,192.38,192.34,0.69]
[1761414420009,8.16208625,192.38,192.34,0.69]
[1761414421820,5.87811905,192.38,192.34,0.69]
[1761414424106,2.2839672,192.35,192.3,0.71]
[1761414424310,2.2839672,192.35,192.29,0.71]
[1761414424626,2.9639672,192.37,192.3,0.71]
[1761414426020,5.19858598,192.36,192.3,5.91012691]
[1761414426208,5.87858598,192.36,192.3,5.91012691]
[1761414426410,5.87858598,192.36,192.31,0.71]
[1761414428323,5.87889256,192.35,192.31,0.71]
[1761414431009,7.48285976,192.35,192.28,38.1639672]
[1761414431213,0.68,192.34,192.3,0.71]
[1761414431716,2.9639672,192.34,192.3,0.71]
[1761414433422,2.9639672,192.33,192.28,0.71]
[1761414433719,2.2839672,192.33,192.28,0.71]
[1761414434025,2.9639672,192.33,192.28,0.71]
[1761414434902,8.1635757,192.33,192.28,0.71]
[1761414435536,5.8796085,192.33,192.28,0.71]
[1761414435705,0.68,192.32,192.28,0.71]
[1761414435899,5.1996085,192.33,192.28,2.9939672]
[1761414436125,5.1996085,192.33,192.29,2.2839672]
[1761414436427,5.8796085,192.33,192.29,2.9939672]
[1761414436623,5.8796085,192.33,192.29,0.71]
[1761414441923,5.85912654,192.34,192.29,0.71]
[1761414445533,5.85946218,192.33,192.29,0.71]
[1761414450744,5.85912654,192.34,192.29,0.71]
[1761414451037,5.19912654,192.34,192.29,5.91043297]
[1761414451341,5.19912654,192.34,192.29,8.19440017]
[1761414451524,5.19912654,192.34,192.3,0.67]
[1761414452159,5.19885625,192.35,192.3,0.67]
[1761414452324,5.85885625,192.35,192.3,0.67]
[1761414452938,0.66,192.34,192.3,0.67]
[1761414453238,5.19885625,192.35,192.3,0.67]
[1761414453431,5.85885625,192.35,192.3,0.67]
[1761414455543,5.85924358,192.34,192.3,0.67]
[1761414456532,22.88,192.35,192.3,8.15405013]
[1761414456930,22.88,192.35,192.31,0.67]
[1761414457144,23.54,192.35,192.31,0.67]
[1761414458746,28.07906583,192.35,192.31,0.67]
[1761414459941,22.88,192.35,192.31,2.9539672]
[1761414460145,22.88,192.35,192.32,2.2839672]
[1761414460328,22.88,192.35,192.32,2.9539672]
[1761414460640,22.88,192.35,192.33,0.67]
[1761414461044,5.1986099,192.36,192.33,0.67]
[1761414462936,5.19837895,192.37,192.33,0.67]
[1761414463328,5.19837895,192.37,192.33,2.9539672]
[1761414463740,5.19837895,192.37,192.34,0.67]
[1761414464745,5.85837895,192.37,192.34,0.67]
[1761414465042,5.19837895,192.37,192.34,0.67]
[1761414484979,22.88,192.38,192.34,0.67]
[1761414486452,28.07808167,192.38,192.34,0.67]
[1761414487958,28.79808167,192.38,192.34,0.67]
[1761414488463,28.07808167,192.38,192.34,0.67]
[1761414488850,28.79808167,192.38,192.34,0.67]
[1761414489573,28.07808167,192.38,192.34,0.67]
[1761414489777,28.07808167,192.38,192.34,2.13182659]
[1761414489956,22.88,192.38,192.35,0.66]
[1761414490774,28.07807283,192.38,192.35,0.66]
[1761414496693,22.88,192.38,192.35,2.12182659]
[1761414496983,5.19728606,192.41,192.36,37.32182659]
[1761414497214,5.19728606,192.41,192.36,37.98182659]
[1761414497377,5.19728606,192.41,192.37,0.66]
[1761414498291,5.19696497,192.42,192.37,0.66]
[1761414499469,5.19696497,192.42,192.37,2.12182659]
[1761414499670,5.19696497,192.42,192.38,0.66]
[1761414500671,5.19696497,192.42,192.38,16.26346396]
[1761414501193,5.19696497,192.42,192.39,0.7]
[1761414502294,5.91696497,192.42,192.39,0.7]
[1761414504382,5.19696497,192.42,192.39,0.7]
[1761414505391,0.72,192.42,192.39,0.7]
[1761414506394,5.9171846,192.42,192.39,0.7]
[1761414508995,5.9171846,192.42,192.38,16.30346396]
[1761414509180,5.9171846,192.42,192.39,0.7]
[1761414520807,5.1971846,192.42,192.39,0.7]
[1761414521479,5.1971846,192.42,192.39,16.30346396]
[1761414521682,5.1966949,192.43,192.39,16.30346396]
[1761414521877,5.1966949,192.43,192.4,0.7]
[1761414525397,5.9166949,192.43,192.4,0.7]
[1761414525897,5.1966949,192.43,192.4,0.7]
[1761414531901,1.0,192.44,192.4,2.16182659]
[1761414532223,1.0,192.44,192.41,15.60102966]
[1761414532518,1.0,192.44,192.41,16.30102966]
[1761414532699,1.0,192.44,192.42,0.7]
[1761414533705,6.19642955,192.44,192.42,0.7]
[1761414534739,1.0,192.44,192.42,0.7]
[1761414535919,1.0,192.44,192.42,6.69590214]
[1761414537231,1.0,192.44,192.42,5.99590214]
[1761414537404,1.0,192.44,192.43,0.7]
[1761414538623,1.0,192.44,192.42,6.69590214]
[1761414540020,1.0,192.44,192.42,5.99590214]
[1761414540322,1.0,192.44,192.43,0.69]
[1761414540526,1.0,192.44,192.42,5.99590214]
[1761414540924,1.0,192.44,192.43,0.69]
[1761414544322,1.0,192.44,192.42,6.68590214]
[1761414544522,2.98202964,192.43,192.42,5.99590214]
[1761414545024,2.98202964,192.43,192.37,0.69]
[1761414545222,0.7,192.42,192.37,0.69]
[1761414545417,0.7,192.42,192.37,21.49173894]
[1761414545621,5.89711144,192.42,192.37,21.49173894]
[1761414545816,8.17914108,192.42,192.38,0.69]
[1761414546930,7.47914108,192.42,192.38,0.69]
[1761414547127,0.7,192.41,192.38,0.69]
[1761414548632,5.8966949,192.43,192.38,0.69]
[1761414548820,8.17872454,192.43,192.38,0.69]
[1761414549020,0.7,192.42,192.38,0.69]
[1761414549832,5.89702014,192.42,192.38,0.69]
[1761414551130,0.7,192.42,192.38,0.69]
[1761414552026,9.17914108,192.44,192.38,0.69]
[1761414552027,6.19646624,192.44,192.39,2.28202964]
[1761414552536,6.89646624,192.44,192.4,0.69]
[1761414558537,6.19646624,192.44,192.4,0.69]
[1761414559637,6.89646624,192.44,192.4,0.69]
[1761414559937,6.19646624,192.44,192.4,0.69]
[1761414561820,6.88646624,192.44,192.4,0.69]
[1761414562942,6.19646624,192.44,192.4,0.69]
[1761414571544,6.88646624,192.44,192.4,0.69]
[1761414574747,6.19646624,192.44,192.4,0.69]
[1761414575449,5.88682423,192.43,192.4,0.69]
[1761414579353,0.69,192.42,192.38,0.69]
[1761414580540,5.19682423,192.43,192.38,8.1700291]
[1761414580741,5.19682423,192.43,192.39,2.28202964]
[1761414580940,5.19682423,192.43,192.39,2.97202964]
[1761414581140,5.19682423,192.43,192.4,0.69]
[1761414581950,5.19682423,192.43,192.38,7.4800291]
[1761414582153,0.69,192.42,192.39,0.69]
[1761414582458,5.19682423,192.43,192.39,0.69]
[1761414582957,5.88682423,192.43,192.39,0.69]
[1761414586054,5.19682423,192.43,192.39,0.69]
[1761414591365,5.89682423,192.43,192.39,0.69]
[1761414591866,0.7,192.42,192.39,0.69]
[1761414592364,5.89682423,192.43,192.39,0.69]
[1761414597067,5.19682423,192.43,192.39,0.69]
[1761414597753,6.19648606,192.44,192.39,5.88777209]
[1761414598167,6.19648606,192.44,192.4,0.69]
[1761414598544,1.0,192.44,192.4,2.15077105]
[1761414598748,1.0,192.44,192.41,0.69]
[1761414599662,1.0,192.44,192.41,2.15077105]
[1761414600357,1.0,192.44,192.42,0.68]
[1761414602370,1.72,192.44,192.41,0.68]
[1761414602682,6.9164303,192.44,192.39,1.46077105]
[1761414602881,0.72,192.43,192.38,5.1961949]
[1761414603049,0.72,192.43,192.38,0.68]
[1761414603548,0.72,192.43,192.38,2.14077105]
[1761414604061,5.9169322,192.43,192.39,0.68]
[1761414604553,0.72,192.42,192.39,0.68]
[1761414604871,5.9169322,192.43,192.39,0.68]
[1761414605373,0.72,192.42,192.39,0.68]
[1761414605544,5.1969322,192.43,192.39,0.68]
[1761414605545,5.9169322,192.43,192.39,0.68]
[1761414606166,5.1969322,192.43,192.39,0.68]
[1761414606345,5.1969322,192.43,192.38,1.46077105]
[1761414606346,0.72,192.42,192.38,1.46077105]
[1761414606552,0.72,192.42,192.38,2.14077105]
[1761414606958,5.1969322,192.43,192.39,0.68]
[1761414607154,5.9169322,192.43,192.39,0.68]
[1761414607677,5.1969322,192.43,192.39,0.68]
[1761414607972,0.72,192.42,192.39,0.68]
[1761414608176,5.91697685,192.42,192.39,0.68]
[1761414608666,5.91697685,192.42,192.38,2.14077105]
[1761414608872,5.91697685,192.42,192.39,0.68]
[1761414610261,5.1966949,192.43,192.39,0.68]
[1761414611662,1.0,192.44,192.41,1.46077105]
[1761414611865,1.0,192.44,192.42,0.68]
[1761414618575,1.0,192.44,192.42,2.14077105]
[1761414619177,1.0,192.44,192.43,0.68]
[1761414623985,1.0,192.44,192.43,2.14077105]
[1761414626487,1.0,192.44,192.43,0.68]
[1761414631079,1.0,192.44,192.43,7.33746595]
[1761414634491,1.0,192.44,192.43,9.41717063]
[1761414640198,1.0,192.44,192.43,9.93684012]
[1761414640892,0.09,192.46,192.44,10.87647521]
[1761414641208,0.09,192.46,192.45,37.82038653]
[1761414641408,0.09,192.46,192.45,38.51038653]